[Event "21st Maccabiah GM 2022"]
[Site "?"]
[Date "2022.07.20"]
[Round "7.4"]
[White "Alekseev, Evgeny"]
[Black "Ginsburg, Gennadi"]
[Result "1-0"]
[ECO "B42"]
[WhiteElo "2601"]
[BlackElo "2400"]
[Annotator "TA"]
[PlyCount "73"]
[EventDate "2022.07.13"]
[EventType "tourn"]
[EventCountry "ISR"]
[SourceTitle "playchess.com"]
[Source "ChessBase"]
[SourceQuality "1"]
[TimeControl "40/5400+30:1800+30"]

{[%evp 15,73,36,36,24,39,45,36,33,27,0,69,0,51,9,32,35,41,10,25,33,23,25,28,0,31,-56,0,-52,-67,-48,-41,-125,-150,-120,-40,-16,-25,-81,-72,-68,-65,-74,0,0,0,0,0,0,0,0,0,0,0,0,0,-96,64,-12841,1023,158]} 1. e4 c5 2. Nf3 e6 3. d4 cxd4 4. Nxd4 a6 5. Bd3 Bc5 6. Nb3 Ba7 7. Qe2 $1 {7.Qe2 scores better than 7.0-0.} Ne7 8. Be3 Nbc6 9. f4 {B42: Sicilian: Kan Variation: 5 Bd3.} O-O 10. Bxa7 Rxa7 11. Nc3 {White is slightly better.} b5 12. O-O-O {[#]} Nb4 $146 (12... b4 $11 13. Na4 d6) ({Predecessor:} 12... Qb6 13. e5 Bb7 14. Be4 Nb4 15. Rd6 Qc7 16. Bxb7 Rxb7 17. Rhd1 Ned5 18. Nxd5 Nxd5 {½-½ (50) Van Delft,M (2340)-Blees,A (2392) Netherlands 2001}) 13. Kb1 (13. Qf2 $14 Rc7 14. a3 Nxd3+ 15. Rxd3) 13... Rc7 (13... Nxd3 $11 14. Rxd3 (14. Qxd3 b4 $11) 14... b4) 14. Qe3 Bb7 15. Rhe1 Qc8 16. g4 d5 17. e5 Nxd3 18. Rxd3 b4 19. Ne2 a5 {[%cal Ba6a5,Ba5a4][%mdl 32]} 20. Ng3 (20. Nxa5 $14 Ba6 21. Rd2) 20... Ba6 ({Black should play} 20... Rxc2 $15 21. Rd2 Rxd2 22. Qxd2 Ba6) 21. Rdd1 (21. Rd2 $11) 21... a4 $1 $15 22. Nd4 {aiming for f5.} Nc6 $1 23. Nxc6 ({Better is} 23. Nge2 $15) 23... Rxc6 $17 24. Rc1 b3 (24... Qc7 $17 {White must now prevent ...Rc8.} 25. Ne2 Bxe2 26. Qxe2 Rc8) 25. cxb3 $15 axb3 {[%cal Oa6d3]} 26. axb3 (26. Qxb3 Bc4 27. Qe3 (27. Qa3 $2 Ra6 $19) 27... Qa6 $17) (26. a3 $1 $11 {keeps the balance.}) 26... Rxc1+ $1 $17 27. Rxc1 Qb7 28. f5 {[%emt 0:30:48]} d4 {[%emt 0:26:50]} (28... Qb4 $17 {Threatens to win with ...d4.} 29. Rd1 Qxg4) 29. Qxd4 $11 {[%emt 0:00:30]} Qxb3 {[%emt 0:00:30]} 30. Rc7 {[%emt 0:00:30]} Rb8 {[%emt 0:00:30]} 31. fxe6 {[%emt 0:00:30]} fxe6 {[%emt 0:00:30]} 32. Nh5 {[%emt 0:00:30] Active counter play!} Bd3+ {[%emt 0:00:30]} 33. Kc1 {[%emt 0:00:30] Really sharp!} Ra8 {[%emt 0:00:30] ( -> ...Ra1+)} 34. Rxg7+ $40 {[%emt 0:00:30][%mdl 128] Black needs to defend precisely.} Kh8 {[%emt 0:00:30][%csl Gd3][%cal Rb3c2]} 35. Kd2 {[%emt 0:00:30]} ({Don't go for} 35. Rc7 $2 Ra1+ 36. Kd2 Rd1+ 37. Ke3 Bc4+ 38. Qc3 Qb6+ 39. Kf4 Qxc7 $19) (35. Qc3 $1 $11 {remains equal.} Qd5 36. Rc7 Ra1+ 37. Kd2 Bg6+ 38. Ke3 Qe4+ 39. Kf2 Bxh5 40. gxh5 (40. Rc8+ Kg7 $17)) 35... Rf8 $2 {[%emt 0:00:30]} 36. Rf7 $2 {[%emt 0:00:30][%mdl 8192]} Rc8 $4 {[%emt 0:00:30][%mdl 8192]} 37. Rc7 $2 {[%emt 0:00:30] Weighted Error Value: White=0.53/Black=0.27 (precise)} 1-0

[Event "21st Maccabiah GM 2022"]
[Site "?"]
[Date "2022.07.20"]
[Round "7.5"]
[White "Gruenfeld, Yehuda"]
[Black "Postny, Evgeny"]
[Result "0-1"]
[ECO "C95"]
[WhiteElo "2426"]
[BlackElo "2564"]
[Annotator "TA"]
[PlyCount "118"]
[EventDate "2022.07.13"]
[EventType "tourn"]
[EventCountry "ISR"]
[SourceTitle "playchess.com"]
[Source "ChessBase"]
[SourceQuality "1"]
[TimeControl "40/5400+30:1800+30"]

{[%evp 24,118,24,10,13,13,19,9,20,8,13,10,1,0,9,0,31,19,25,20,18,31,32,51,49,11,31,0,10,31,17,20,22,-66,-54,-59,-70,-72,-79,-90,-88,-91,-70,-129,-134,-126,-114,-108,-114,-129,-108,-183,-108,-102,-76,-138,-140,-148,-94,-160,-158,-195,-195,-195,-200,-200,-200,-282,-271,-266,-276,-339,-340,-351,-295,-333,-303,-377,-410,-404,-391,-432,-392,-399,-386,-597,-591,-584,-520,-560,-414,-522,-503,-782,-778,-723,-704]} 1. e4 {[%emt 0:00:10]} e5 {[%emt 0:02:58]} 2. Nf3 Nc6 3. Bb5 a6 4. Ba4 Nf6 5. O-O Be7 6. Re1 b5 7. Bb3 d6 8. c3 O-O 9. h3 Nb8 10. d4 Nbd7 11. Nbd2 {[%cal Bb1d2,Bd2f1,Bf1g3][%mdl 32]} Bb7 12. Bc2 c5 13. d5 {13.d5 scores better than 13.Nf1.} c4 {C95: Closed Ruy Lopez: Breyer Variation with 10 d4.} 14. Nf1 Qc7 15. Ng3 g6 {Prevents Nf5. The position is equal.} 16. Bh6 Rfb8 17. Qd2 a5 18. a3 (18. Rf1 b4 19. Ng5 Ba6 20. f4 bxc3 21. bxc3 Rb2 22. Kh2 Qd8 23. Rf2 Rab8 24. Nf3 Nc5 25. Qe3 Nfd7 26. fxe5 dxe5 {0-1 (79) Gruenfeld,Y (2412)-Postny,E (2605) Jerusalem 2021}) 18... Ba6 19. Nh2 {[#]} Kh8 $146 ({Predecessor:} 19... Nc5 20. f4 exf4 21. Qxf4 Ncd7 22. Nf5 Bf8 23. Bxf8 Rxf8 24. Qxd6 Qa7+ 25. Nd4 Rad8 {1-0 (38) Shubin,K (2429)-Obolenskikh,D (2544) Chess.com INT 2020}) 20. Kh1 Nc5 21. Bg5 (21. Rf1 {looks sharper.} b4 22. cxb4 axb4 23. axb4 c3 24. bxc3 Bxf1 25. Rxa8 Rxa8 26. Nhxf1 Na4 27. Ne2) 21... Qd8 {[%cal Of6e4]} 22. f4 Ng8 23. Bxe7 Qxe7 24. Nf3 f6 25. Rad1 Ra7 26. Rf1 Rab7 27. fxe5 dxe5 28. d6 {[%emt 0:13:17]} ({Better is} 28. Ra1 $11) 28... Qd8 $15 {[%emt 0:13:04]} 29. Qd5 {[%emt 0:00:30]} Nd7 {[%emt 0:00:30]} 30. Rf2 {[%emt 0:00:30]} Nb6 {[%emt 0:00:30]} 31. Qc5 {[%emt 0:00:30][%cal Of3e5] [#] Hoping for Nxe5!} Rc8 $1 {[%emt 0:00:30]} 32. Qe3 {[%emt 0:00:30]} Rd7 {[%emt 0:00:30]} 33. Rfd2 {[%emt 0:00:30]} (33. h4 $15) 33... Rc6 $17 {[%emt 0:00:30]} 34. Nf1 {[%emt 0:00:30]} Rcxd6 {[%emt 0:00:30]} 35. Qc5 {[%emt 0:00:30][%cal Rd2d6]} Rxd2 {[%emt 0:00:30]} 36. Rxd2 {[%emt 0:00:30]} Rxd2 {[%emt 0:00:30]} 37. N3xd2 {[%emt 0:00:30] [#]} (37. N1xd2 $17 Nc8 38. g4) 37... Nc8 {[%emt 0:00:30]} (37... a4 $1 $19 38. Nf3 Nc8) 38. a4 {[%emt 0:00:30]} Qd6 {[%emt 0:00:30]} 39. Qf2 {[%emt 0:00:30]} ({White should play} 39. Qxd6 Nxd6 40. Ne3) 39... b4 {[%emt 0:00:30]} 40. Ne3 {[%emt 0:00:30]} Qc5 {[%emt 0:00:30]} (40... b3 $142 41. Bd1 Nb6) 41. Bd1 {[%emt 0:30:30]} (41. cxb4 $142 axb4 42. Kg1) 41... Nb6 {[%emt 0:30:30]} 42. Ng4 {[%emt 0:00:30]} Qxf2 {[%emt 0:00:30]} 43. Nxf2 {[%emt 0:00:30]} bxc3 {[%emt 0:00:30]} 44. bxc3 {[%emt 0:00:30]} Nh6 {[%emt 0:00:30]} 45. Be2 {[%emt 0:00:30]} (45. Kh2 $142) 45... Nxa4 $19 {[%emt 0:00:30]} 46. Bxc4 {[%emt 0:00:30]} Bb7 {[%emt 0:00:30]} 47. Nd1 {[%emt 0:00:30]} Nc5 {[%emt 0:00:30]} 48. Bd5 {[%emt 0:00:30]} Kg7 {[%emt 0:00:30]} 49. Nc4 {[%emt 0:00:30]} a4 {[%emt 0:00:30]} 50. Ndb2 {[%emt 0:00:30]} Bxd5 {[%emt 0:00:30]} 51. exd5 {[%emt 0:00:30][%mdl 4096] Endgame KNN-KNN} Nf5 {[%emt 0:00:30]} 52. Na3 {[%emt 0:00:30]} Ng3+ {[%emt 0:00:30]} 53. Kh2 {[%emt 0:00:30]} Ne2 {[%emt 0:00:30]} 54. c4 {[%emt 0:00:30]} (54. Nb5 {keeps fighting.}) 54... f5 {[%emt 0:00:30]} 55. g3 {[%emt 0:00:30]} Kf6 {[%emt 0:00:30]} 56. Kg2 {[%emt 0:00:30]} e4 {[%emt 0:00:30]} 57. Kf2 {[%emt 0:00:30]} Nd4 {[%emt 0:00:30] Black is clearly winning.} 58. Ke3 {[%emt 0:00:30]} (58. h4 $142) 58... Ke5 {[%emt 0:00:30] And now ...g5 would win.} 59. h4 {[%emt 0:00:30]} h6 {[%emt 0:00:30] Weighted Error Value: White=0.34/Black=0.13 (very precise)} 0-1

[Event "21st Maccabiah GM 2022"]
[Site "?"]
[Date "2022.07.21"]
[Round "8.1"]
[White "Dvoirys, Semen I."]
[Black "Postny, Evgeny"]
[Result "0-1"]
[ECO "C45"]
[WhiteElo "2439"]
[BlackElo "2564"]
[Annotator "TA"]
[PlyCount "42"]
[EventDate "2022.07.13"]
[EventType "tourn"]
[EventCountry "ISR"]
[SourceTitle "playchess.com"]
[Source "ChessBase"]
[SourceQuality "1"]
[TimeControl "40/5400+30:1800+30"]

{[%evp 10,42,43,9,13,13,9,0,25,23,15,-34,-31,-25,-24,-31,-39,-77,-24,-47,-35,-45,0,-63,-32,-29,-13,-150,-153,-400,-401,-374,-365,-470,-448]} 1. e4 {[%emt 0:00:07]} e5 {[%emt 0:00:06]} 2. Nf3 {[%emt 0:00:06]} Nc6 {[%emt 0:00:06]} 3. d4 {[%emt 0:02:06]} exd4 {[%emt 0:00:12]} 4. Nxd4 {[%emt 0:00:05]} Bb4+ {[%emt 0:02:22]} 5. c3 {[%emt 0:01:57]} Bc5 {[%emt 0:00:07]} 6. Be3 {[%emt 0:01:31]} Bb6 {[%emt 0:00:15] C45: Scotch Game.} 7. Nd2 {[%emt 0:02:10]} Nf6 {[%emt 0:01:11] Inhibits Qg4.} 8. Bd3 {[%emt 0:19:10]} d5 $5 {[%emt 0:10:20][%mdl 4] The position is equal. Exploring less charted territory.} 9. Nxc6 {[%emt 0:07:03]} bxc6 {[%emt 0:00:09]} 10. Qe2 {[%emt 0:00:06]} (10. Bg5 $11 {deserves consideration.}) 10... O-O $1 $15 {[%emt 0:03:14]} 11. O-O-O {[%emt 0:05:22]} Ng4 $1 {[%emt 0:07:04] [#]} 12. Bxb6 $146 {[%emt 0:02:59]} ({Predecessor:} 12. Nf3 Qe8 13. Bxb6 axb6 14. h3 Nf6 15. e5 Ne4 16. Kb1 Bf5 17. g4 Bg6 18. h4 {0-1 (25) Noritsyn,S (2074)-Dukic,Z (2020) Aurora 2017}) 12... axb6 {[%emt 0:00:11]} 13. Kb1 {[%emt 0:00:21] [#]} Re8 {[%emt 0:08:46]} (13... d4 $1 $17 {[%cal Rd4c3] White must now prevent ...dxc3.} 14. h3 Ne5) 14. f4 {[%emt 0:10:23]} dxe4 15. Nxe4 {[%emt 0:00:50]} Be6 {[%emt 0:24:25] Strongly threatening ...f5.} 16. c4 {[%emt 0:03:26]} (16. a3 $1 $11) 16... Bf5 {[%emt 0:10:41] aiming for ...Qd4.} (16... Qd4 $5 {[%cal Rg4e3]} 17. Rhe1 f5 $17) 17. Rhe1 {[%emt 0:01:36]} Re6 {[%emt 0:00:56] Threatens to win with ...Qe7.} (17... h5 $5 {[%cal Re8e6]}) 18. Qc2 {[%emt 0:19:29]} (18. h3 $11 Nf6 19. Nxf6+ Qxf6 20. Qc2 Bxd3 21. Qxd3) 18... Qd4 $17 {[%emt 0:03:04] And now ...Ne3 would win.} 19. h3 $2 {[%emt 0:12:48]} ({Much weaker is} 19. Nf6+ Qxf6 20. Bxf5 Ne3 21. Rxe3 (21. Bxh7+ $2 Kf8 $19) 21... Rxe3 22. Bxh7+ Kf8) (19. Qc3 $17 Qxc3 20. bxc3) 19... Ne3 $19 {[%emt 0:01:40]} 20. Rxe3 {[%emt 0:00:50]} Qxe3 {[%emt 0:00:07]} 21. Ng5 {[%emt 0:00:02] [#]} Qxd3 $3 {[%emt 0:01:05][%mdl 512] Weighted Error Value: White=0.51/Black=0.11 (very precise)} 0-1

[Event "21st Maccabiah GM 2022"]
[Site "?"]
[Date "2022.07.21"]
[Round "8.2"]
[White "Ginsburg, Gennadi"]
[Black "Gruenfeld, Yehuda"]
[Result "1/2-1/2"]
[ECO "C68"]
[WhiteElo "2400"]
[BlackElo "2426"]
[Annotator "TA"]
[PlyCount "80"]
[EventDate "2022.07.13"]
[EventType "tourn"]
[EventCountry "ISR"]
[SourceTitle "playchess.com"]
[Source "ChessBase"]
[SourceQuality "1"]
[TimeControl "40/5400+30:1800+30"]

{[%evp 25,80,-22,-28,-25,-24,-18,-20,-33,-32,-16,-36,-54,-54,-54,-54,-54,-60,-53,-60,-85,-92,-83,-91,-122,-61,-61,-61,-58,-58,-58,-58,-58,-58,-58,-58,-58,-58,-58,-58,-58,-58,-58,-58,-58,-58,-58,-38,-38,-38,-38,-38,-51,-18,-23,-24,-25,-24]} 1. e4 {[%emt 0:00:17]} e5 {[%emt 0:00:15]} 2. Nf3 {[%emt 0:00:40]} Nc6 {[%emt 0:00:03]} 3. Bb5 {[%emt 0:01:29]} a6 {[%emt 0:00:18]} 4. Bxc6 {[%emt 0:00:27]} dxc6 {[%emt 0:00:32]} 5. Nc3 {[%emt 0:00:20]} f6 {[%emt 0:14:16]} 6. d4 {[%emt 0:00:22]} exd4 {[%emt 0:00:07]} 7. Nxd4 {[%emt 0:00:38]} c5 {[%emt 0:00:20]} 8. Nde2 {[%emt 0:00:25]} Qxd1+ {[%emt 0:00:18]} 9. Nxd1 {[%emt 0:00:30]} Be6 {[%emt 0:04:29]} 10. Bf4 {[%emt 0:02:55]} O-O-O {[%emt 0:00:33]} 11. Ne3 {[%emt 0:02:49]} Ne7 {[%emt 0:02:26]} 12. Rd1 {[%emt 0:02:26]} Rxd1+ {[%emt 0:02:04]} 13. Kxd1 {[%emt 0:00:19]} g5 {[%emt 0:05:11]} ({Much less strong is} 13... Bxa2 14. b3 $14) 14. Bg3 {[%emt 0:02:22] C68: Ruy Lopez: Exchange Variation, sidelines.} f5 {[%emt 0:00:37] ...f4 is the strong threat.} ({Don't do} 14... Bxa2 15. b3 $16) 15. Be5 {[%emt 0:13:42]} Rg8 {[%emt 0:00:11]} 16. exf5 {[%emt 0:08:41] The position is equal.} Nxf5 {[%emt 0:00:18]} 17. Nxf5 {[%emt 0:01:54]} Bxf5 {[%emt 0:00:09] [#]} 18. Nc3 $146 {[%emt 0:00:24]} ({Predecessor:} 18. Re1 Bh6 19. f3 g4 20. f4 Rd8+ 21. Kc1 Rd5 22. Bf6 Rd6 23. Bc3 Re6 24. g3 {1-0 (42) Mastrovasilis,D (2618)-Denny,K (2304) Istanbul 2012}) 18... Bh6 {[%emt 0:02:58] [#] Strongly threatening ...Rd8+.} 19. f3 $1 {[%emt 0:18:55]} Rd8+ {[%emt 0:06:04]} 20. Kc1 {[%emt 0:00:15]} Re8 {[%emt 0:00:18]} 21. Bg3 {[%emt 0:03:17]} g4+ {[%emt 0:02:02]} 22. Kb1 {[%emt 0:08:36]} gxf3 {[%emt 0:02:48]} 23. gxf3 {[%emt 0:01:16]} Re3 {[%emt 0:00:36]} 24. a4 {[%emt 0:09:05]} Bg7 {[%emt 0:03:42]} ({Black should try} 24... Rxf3 $17 25. Re1 Bf4 26. Bxf4 Rxf4) 25. Re1 $15 {[%emt 0:03:37]} Rxe1+ {[%emt 0:01:32]} 26. Bxe1 {[%emt 0:00:12][%mdl 4096] Endgame KBB-KBN} Be5 {[%emt 0:00:03]} 27. Bg3 {[%emt 0:00:42]} Bxc3 {[%emt 0:00:20]} 28. bxc3 {[%emt 0:00:04] KB-KB} a5 {[%emt 0:00:06]} 29. Kb2 {[%emt 0:01:57]} c4 {[%emt 0:01:24]} 30. Bh4 {[%emt 0:04:06]} Bd7 {[%emt 0:00:13]} 31. Ka3 {[%emt 0:00:20]} Bc6 {[%emt 0:00:05]} 32. f4 {[%emt 0:00:13]} Be4 {[%emt 0:00:05]} 33. Kb2 {[%emt 0:00:14]} Bf5 {[%emt 0:00:23]} 34. Bg5 {[%emt 0:00:22]} Kd7 {[%emt 0:00:09]} 35. Bf6 {[%emt 0:00:41]} h5 {[%emt 0:01:01]} 36. Bg5 {[%emt 0:01:34]} c6 {[%emt 0:00:58]} 37. Bh4 {[%emt 0:02:46]} b5 {[%emt 0:00:07]} 38. Bg5 {[%emt 0:04:36]} bxa4 {[%emt 0:00:46]} 39. Ka3 {[%emt 0:02:34]} Bxc2 {[%emt 0:00:43]} 40. f5 {[%emt 0:01:25]} Bxf5 {Weighted Error Value: White=0.04 (flawless) /Black=0.05 (flawless)} 1/2-1/2

[Event "21st Maccabiah GM 2022"]
[Site "?"]
[Date "2022.07.21"]
[Round "8.3"]
[White "Yarmonov, Igor"]
[Black "Alekseev, Evgeny"]
[Result "0-1"]
[ECO "D00"]
[WhiteElo "2372"]
[BlackElo "2601"]
[Annotator "TA"]
[PlyCount "144"]
[EventDate "2022.07.13"]
[EventType "tourn"]
[EventCountry "ISR"]
[SourceTitle "playchess.com"]
[Source "ChessBase"]
[SourceQuality "1"]
[TimeControl "40/5400+30:1800+30"]

{[%evp 10,144,1,0,6,0,23,2,8,0,7,13,5,0,0,0,0,0,0,-18,0,-11,4,-5,0,-8,-11,-10,0,-10,-7,-4,-10,-17,-6,-12,0,-2,0,-22,-18,-24,-21,-25,-25,-25,-25,-51,-53,-54,-58,-94,-97,-83,-77,-49,-31,-37,-54,-40,-50,-40,-36,-36,-12,-10,-10,-10,0,0,0,-1,-4,-4,-4,-4,-8,-5,-8,-7,-12,-14,0,0,0,-1,0,-8,0,0,0,-7,0,0,0,-8,-6,-77,0,0,0,0,0,-6,-15,-50,-2,-2,-2,-5,0,0,0,-95,0,-36,-5,-6,0,0,0,0,0,0,0,0,0,0,0,0,0,0,0,-12844,-12844,-27999,-27999]} 1. d4 {[%emt 0:00:30]} d5 {[%emt 0:01:29]} 2. Bf4 {[%emt 0:00:23]} Nf6 {[%emt 0:02:33]} 3. c3 {[%emt 0:00:20]} e6 {[%emt 0:09:11]} 4. e3 {[%emt 0:00:09]} c5 {[%emt 0:02:11]} 5. Nd2 {[%emt 0:00:13]} Nc6 {[%emt 0:00:29]} 6. Bd3 {[%emt 0:00:08]} Be7 {[%emt 0:02:05] D00: 1 d4 d5: Unusual lines.} 7. h3 {[%emt 0:00:34]} Bd6 {[%emt 0:02:43]} 8. Bxd6 {[%emt 0:00:28]} Qxd6 {[%emt 0:00:01] The position is equal.} 9. Ngf3 {[%emt 0:00:04]} O-O {[%emt 0:00:38]} 10. O-O {[%emt 0:00:07]} e5 {[%emt 0:00:35]} 11. dxe5 {[%emt 0:00:24]} Nxe5 {[%emt 0:00:02]} 12. Nxe5 {[%emt 0:00:27]} Qxe5 {[%emt 0:00:02]} 13. Re1 {[%emt 0:00:33]} Rd8 {[%emt 0:03:10] [#]} 14. Rc1 $146 {[%emt 0:00:58]} ({Predecessor:} 14. e4 Bxh3 15. gxh3 dxe4 16. Nxe4 c4 17. Nxf6+ Qxf6 18. Bxh7+ Kxh7 19. Qh5+ Kg8 20. Re2 {0-1 (39) Kaliksteyn,A (2391)-Guo,A (2422) New York 2021}) 14... h6 {[%emt 0:14:49]} 15. Bb1 {[%emt 0:03:04]} Be6 {[%emt 0:04:58]} 16. Qf3 {[%emt 0:07:11]} Qg5 {[%emt 0:11:24]} 17. a3 {[%emt 0:13:32]} Rac8 {[%emt 0:05:08]} 18. Nf1 {[%emt 0:03:09]} Nd7 {[%emt 0:03:52]} 19. Qg3 {[%emt 0:02:06]} Nb6 {[%emt 0:09:23]} 20. Qxg5 {[%emt 0:01:18]} hxg5 {[%emt 0:01:29]} 21. Bd3 {[%emt 0:00:05]} Na4 {[%emt 0:04:09]} 22. Rb1 {[%emt 0:05:50]} a6 {[%emt 0:04:02]} 23. Bc2 {[%emt 0:00:07]} b5 {[%emt 0:01:36]} 24. Red1 {[%emt 0:05:29]} Nb6 {[%emt 0:00:15][%cal Od5d4,Ba4b6,Bb6c4,Bc4a3,Ba3c2][%mdl 32]} 25. Bd3 {[%emt 0:01:14]} Kf8 {[%emt 0:01:08]} 26. Ng3 {[%emt 0:00:53]} g6 {[%emt 0:01:26]} 27. Ne2 {[%emt 0:01:02]} Nc4 {[%emt 0:02:11]} 28. b4 {[%emt 0:11:47]} d4 $1 {[%emt 0:03:38]} 29. exd4 {[%emt 0:19:14]} Nxa3 {[%emt 0:00:02]} 30. Ra1 {[%emt 0:00:43]} cxb4 {[%emt 0:00:03]} 31. cxb4 {[%emt 0:00:03]} Nc2 {[%emt 0:00:26] Black is much more active.} 32. Rxa6 {[%emt 0:01:07]} Nxd4 {[%emt 0:01:52]} 33. Raa1 {[%emt 0:04:16]} Bb3 {[%emt 0:01:38]} 34. Rdc1 {[%emt 0:00:58]} Rxc1+ {[%emt 0:00:39]} 35. Nxc1 {[%emt 0:07:07]} Ba4 {[%emt 0:00:01]} 36. Rb1 {[%emt 0:02:09]} Nc6 {[%emt 0:01:58]} 37. Be2 $1 {[%emt 0:04:34]} Rd2 {[%emt 0:01:08]} 38. Kf1 $1 {[%emt 0:00:13]} Ne5 {[%emt 0:03:19]} 39. Ke1 {[%emt 0:00:17]} Rd4 {[%emt 0:00:11]} 40. Na2 {[%emt 0:02:05]} Nd3+ {[%emt 0:03:21]} 41. Bxd3 {[%emt 0:30:06]} Rxd3 $11 {[%emt 0:30:02][%mdl 4096] Endgame KRB-KRN} 42. Ke2 {[%emt 0:05:07]} Ra3 {[%emt 0:00:35]} 43. Rb2 {[%emt 0:00:00]} Bb3 {[%emt 0:00:00]} 44. Nc3 {[%emt 0:00:00]} Bc4+ {[%emt 0:00:00]} 45. Kd2 {[%emt 0:00:00]} Ke7 {[%emt 0:00:00]} 46. Rb1 {[%emt 0:00:00]} f5 {[%emt 0:00:00]} 47. Kc2 {[%emt 0:00:00]} Ra8 {[%emt 0:00:00]} 48. Rd1 {[%emt 0:00:00]} Ke6 {[%emt 0:00:00]} 49. Re1+ {[%emt 0:00:00]} Kd6 {[%emt 0:00:00]} 50. Kb2 {[%emt 0:00:00]} Kc6 {[%emt 0:00:00]} 51. Re3 {[%emt 0:00:00]} Rd8 {[%emt 0:00:00]} 52. Kc2 {[%emt 0:00:00] Prevents Rd2+.} Rd4 {[%emt 0:00:00]} 53. Re7 {[%emt 0:00:00]} (53. g3 $11) 53... Rf4 {[%emt 0:00:00]} (53... Bd3+ $17 54. Kb3 Bf1) 54. f3 {[%emt 0:00:00]} Rd4 {[%emt 0:00:00]} 55. Rg7 {[%emt 0:00:00]} Bd3+ {[%emt 0:00:00]} 56. Kb3 {[%emt 0:00:00]} Rd6 {[%emt 0:00:00]} 57. g3 {[%emt 0:00:00]} f4 {[%emt 0:00:00]} (57... Bf1 $15) 58. gxf4 {[%emt 0:00:00]} gxf4 {[%emt 0:00:00] [#] aiming for ...Bf5.} 59. h4 {[%emt 0:00:00]} Bf5 {[%emt 0:00:00] ...Rd2 is the strong threat.} 60. h5 {[%emt 0:00:00]} Rd2 {[%emt 0:00:00]} (60... gxh5 $5 61. Rg5 Be6+ 62. Kc2 Bf7 63. Nxb5 (63. Rc5+ Kd7 $15) 63... Rh6 $15) 61. Re7 {[%emt 0:00:00] Inhibits Be6+.} ({Not} 61. hxg6 $2 Be6+ 62. Ka3 Rc2 $19) (61. h6 $1 $11 {keeps the balance.}) 61... gxh5 {[%emt 0:00:00]} (61... Kd6 $17 62. Re1 Be6+ 63. Ka3 Rd3) 62. Re5 {[%emt 0:00:00]} (62. Nxb5 $5 h4 63. Re5 $15) 62... Bg6 {[%emt 0:00:00]} 63. Nxb5 {[%emt 0:00:00]} h4 {[%emt 0:03:24]} 64. Re6+ {[%emt 0:02:46]} Kxb5 {[%emt 0:00:04]} 65. Rxg6 {[%emt 0:00:16] KR-KR} Rd3+ {[%emt 0:00:37]} 66. Kc2 {[%emt 0:00:02]} Rxf3 {[%emt 0:00:08] [#] Hoping for ...Kc4.} 67. Kd2 $1 {[%emt 0:02:10]} h3 {[%emt 0:02:07]} 68. Rh6 {[%emt 0:00:46]} Rf2+ {[%emt 0:02:38]} 69. Ke1 {[%emt 0:02:35]} Rh2 {[%emt 0:00:00]} 70. Kf1 {[%emt 0:00:54]} f3 {[%emt 0:00:32]} 71. Rf6 $2 {[%emt 0:00:06][%mdl 8192]} (71. Rh4 $11) 71... Ra2 {[%emt 0:01:18]} 72. Rxf3 {[%emt 0:00:03]} Ra1+ {[%emt 0:00:02] Weighted Error Value: White=0.07 (flawless) /Black=0.06 (flawless)} 0-1

[Event "21st Maccabiah GM 2022"]
[Site "?"]
[Date "2022.07.21"]
[Round "8.4"]
[White "Parkhov, Yair"]
[Black "Kobo, Ori"]
[Result "1/2-1/2"]
[ECO "D35"]
[WhiteElo "2468"]
[BlackElo "2534"]
[Annotator "TA"]
[PlyCount "39"]
[EventDate "2022.07.13"]
[EventType "tourn"]
[EventCountry "ISR"]
[SourceTitle "playchess.com"]
[Source "ChessBase"]
[SourceQuality "1"]
[TimeControl "40/5400+30:1800+30"]

{[%evp 12,39,23,22,26,4,8,-29,-30,-17,-12,-2,0,-41,-43,-86,-70,-101,-100,-97,-85,-103,-109,-87,-43,-42,-31,-27,-9,-23]} 1. d4 {[%emt 0:00:02]} d5 {[%emt 0:00:17]} 2. c4 {[%emt 0:00:30]} e6 {[%emt 0:00:30]} 3. cxd5 exd5 {[%emt 0:00:18]} 4. Nf3 {[%emt 0:01:49]} Nf6 {[%emt 0:00:30]} 5. Nc3 {[%emt 0:00:30]} Nbd7 {[%emt 0:00:30]} 6. Bg5 {[%emt 0:00:30]} c6 {[%emt 0:00:30]} 7. e3 {[%emt 0:00:30]} h6 {[%emt 0:00:30] D35: Queen's Gambit Declined: Exchange Variation.} 8. Bf4 {[%emt 0:09:22]} Nh5 {[%emt 0:03:15]} 9. Bd3 {[%emt 0:06:44]} (9. Be5 $5) 9... Nxf4 {[%emt 0:06:20] Black has an edge.} 10. exf4 {[%emt 0:00:06] [#]} Qf6 $146 {[%emt 0:09:27]} ({Predecessor:} 10... Bd6 11. Qd2 Qe7+ 12. Kf1 O-O 13. Re1 Qd8 14. Ne5 Nf6 15. h3 c5 16. dxc5 Bxc5 {0-1 (33) Ferreira,V (2128)-Galperin,P (2518) Chess.com INT 2022}) 11. g3 {[%emt 0:04:04]} Bd6 {[%emt 0:14:24]} 12. O-O {[%emt 0:12:25]} g5 {[%emt 0:04:07]} 13. Qe2+ {[%emt 0:14:45]} Kf8 {[%emt 0:02:48]} 14. Kh1 {[%emt 0:03:22]} gxf4 {[%emt 0:03:34]} 15. Rae1 {[%emt 0:03:26]} Nb6 {[%emt 0:01:19]} 16. Ne5 {[%emt 0:00:20] Against Bg4} Bh3 {[%emt 0:07:05]} 17. Rg1 {[%emt 0:00:32]} f3 {[%emt 0:01:04]} 18. Nxf3 {[%emt 0:00:25]} Bg4 {[%emt 0:00:14] This bishop pair is nice.} 19. Kg2 {[%emt 0:00:08]} Kg7 {[%emt 0:01:21][%cal Oa8e8]} 20. Nd1 {[%emt 0:41:00] Weighted Error Value: White=0.13 (very precise) /Black=0.05 (flawless)} 1/2-1/2